[Event "36th Belgrade Trophy 2023"]
[Site "Belgrade"]
[Date "2023.11.25"]
[Round "1.1"]
[White "Nenezic, Marko"]
[Black "Stanisavljevic, Ivan"]
[Result "1-0"]
[ECO "D15"]
[WhiteElo "2499"]
[BlackElo "1819"]
[Annotator "RC"]
[PlyCount "65"]
[EventDate "2023.10.23"]
[EventType "swiss"]
[EventCountry "SRB"]
[SourceTitle "playchess.com"]
[Source "ChessBase"]
[SourceQuality "1"]
[TimeControl "40/5400+30:900+30"]

1. d4 {[%emt 0:00:10]} d5 {[%emt 0:00:02]} 2. c4 {[%emt 0:00:32]} c6 {[%emt 0:00:25]} 3. Nf3 {[%emt 0:00:27]} Nf6 {[%emt 0:00:26]} 4. Nc3 {[%emt 1:31:21]} a6 {[%emt 0:02:00]} 5. c5 {[%emt 0:00:30]} Bf5 {[%emt 1:30:07]} 6. Bf4 {[%emt 0:00:30]} h6 {[%emt 0:00:30]} 7. h3 {[%emt 0:00:30]} g5 {[%emt 0:00:30]} 8. Bh2 {[%emt 0:00:30]} Nbd7 {[%emt 0:00:30]} 9. e3 {[%emt 0:00:30]} Bg7 {[%emt 0:00:30]} 10. Bd3 {[%emt 0:00:30]} Bxd3 {[%emt 0:00:00]} 11. Qxd3 {[%emt 0:00:30]} O-O {[%emt 0:01:00]} 12. O-O {[%emt 0:00:30]} Re8 {[%emt 0:00:30]} 13. Ne5 {[%emt 0:00:30]} Nxe5 {[%emt 0:00:00]} 14. Bxe5 {[%emt 0:00:30]} Nd7 {[%emt 0:01:00]} 15. Bxg7 {[%emt 0:00:30]} Kxg7 {[%emt 0:00:30]} 16. f4 {[%emt 0:00:30]} e6 {[%emt 0:00:30]} 17. e4 {[%emt 0:00:30]} dxe4 {[%emt 0:00:30]} 18. Nxe4 {[%emt 0:00:30]} f5 {[%emt 0:00:30]} 19. Nd6 {[%emt 0:00:30]} Qf6 {[%emt 0:00:30]} 20. Rae1 {[%emt 0:00:30]} Re7 {[%emt 0:00:00]} 21. fxg5 {[%emt 0:00:00]} Qg6 {[%emt 0:01:00]} 22. Rxf5 {[%emt 0:00:00]} Rf8 {[%emt 0:00:00]} 23. Qf3 {[%emt 0:00:00]} Rg8 {[%emt 0:00:00]} 24. gxh6+ {[%emt 0:00:00]} Kh8 {[%emt 0:00:00]} 25. Nf7+ {[%emt 0:00:00]} Kh7 {[%emt 0:00:00]} 26. Ng5+ {[%emt 0:00:00]} Kxh6 {[%emt 0:00:00]} 27. Nf7+ {[%emt 0:00:00]} Kh7 {[%emt 0:00:00]} 28. Rh5+ {[%emt 0:00:00]} Kg7 {[%emt 0:00:00]} 29. Rg5 {[%emt 0:00:00]} Rxf7 {[%emt 0:00:00]} 30. Rxg6+ {[%emt 0:00:00]} Kxg6 {[%emt 0:04:30]} 31. Qg4+ {[%emt 0:00:00]} Kh7 {[%emt 0:00:00]} 32. Qh5+ {[%emt 0:06:00]} Kg7 {[%emt 0:00:00]} 33. Rxe6 {[%emt 0:00:00]} 1-0

[Event "36th Belgrade Trophy 2023"]
[Site "Belgrade"]
[Date "2023.11.25"]
[Round "1.2"]
[White "Kosovac, Milan"]
[Black "Stojanovic, Mihajlo"]
[Result "0-1"]
[ECO "D20"]
[WhiteElo "1818"]
[BlackElo "2490"]
[Annotator "RC"]
[PlyCount "58"]
[EventDate "2023.10.23"]
[EventType "swiss"]
[EventCountry "SRB"]
[SourceTitle "playchess.com"]
[Source "ChessBase"]
[SourceQuality "1"]
[TimeControl "40/5400+30:900+30"]

1. d4 {[%emt 0:00:11]} d5 {[%emt 0:01:56]} 2. c4 {[%emt 0:00:11]} dxc4 {[%emt 0:02:49]} 3. Nc3 {[%emt 0:00:46]} a6 {[%emt 0:00:07]} 4. a4 {[%emt 0:01:15]} Nc6 {[%emt 0:00:04]} 5. Nf3 {[%emt 0:01:52]} Bg4 {[%emt 0:01:04]} 6. e3 {[%emt 0:02:27]} Na5 {[%emt 0:00:44]} 7. Be2 {[%emt 0:03:13]} Bxf3 {[%emt 0:00:58]} 8. Bxf3 {[%emt 0:00:42]} e6 {[%emt 0:00:08]} 9. O-O {[%emt 0:00:52]} c6 {[%emt 0:00:58]} 10. e4 {[%emt 0:03:33]} Nb3 {[%emt 0:00:22]} 11. Rb1 {[%emt 0:00:14]} Nxd4 {[%emt 0:01:20]} 12. g3 {[%emt 0:08:39]} e5 {[%emt 0:04:33]} 13. Bg2 {[%emt 0:00:16]} Bc5 {[%emt 0:00:09]} 14. Be3 {[%emt 0:05:22]} Qe7 {[%emt 0:01:02]} 15. Bxd4 {[%emt 0:09:23]} Bxd4 {[%emt 0:00:26]} 16. Kh1 {[%emt 0:03:07]} Nf6 {[%emt 0:01:15]} 17. h3 {[%emt 0:05:40]} O-O {[%emt 0:00:29]} 18. Na2 {[%emt 0:03:41]} b5 {[%emt 0:00:31]} 19. Qc2 {[%emt 0:00:40]} Nd7 {[%emt 0:01:17]} 20. axb5 {[%emt 0:05:18]} axb5 {[%emt 0:00:40]} 21. Nc3 {[%emt 0:02:38]} Nc5 {[%emt 0:00:26]} 22. Ne2 {[%emt 0:00:43]} Rfd8 {[%emt 0:00:23]} 23. f4 {[%emt 0:01:16]} Be3 {[%emt 0:02:18]} 24. Rbd1 {[%emt 0:02:29]} Nd3 {[%emt 0:00:11]} 25. Kh2 {[%emt 0:01:36]} Ra2 {[%emt 0:00:12]} 26. Rb1 {[%emt 0:00:46]} Qb4 {[%emt 0:00:22]} 27. Rf3 {[%emt 0:00:31]} Qd2 {[%emt 0:02:40]} 28. Qxd2 {[%emt 0:01:27]} Bxd2 {[%emt 0:00:05]} 29. fxe5 {[%emt 0:02:43]} Rxb2 {[%emt 0:00:25]} 0-1

[Event "36th Belgrade Trophy 2023"]
[Site "Belgrade"]
[Date "2023.11.25"]
[Round "1.3"]
[White "Bryakin, Mikhail"]
[Black "Rajlic, Boris"]
[Result "1-0"]
[ECO "D72"]
[WhiteElo "2478"]
[BlackElo "1804"]
[Annotator "RC"]
[PlyCount "69"]
[EventDate "2023.10.23"]
[EventType "swiss"]
[EventCountry "SRB"]
[SourceTitle "playchess.com"]
[Source "ChessBase"]
[SourceQuality "1"]
[TimeControl "40/5400+30:900+30"]

1. d4 {[%emt 0:00:04]} Nf6 {[%emt 0:00:20]} 2. c4 {[%emt 0:00:10]} g6 {[%emt 0:00:23]} 3. g3 {[%emt 0:00:09]} Bg7 {[%emt 0:01:06]} 4. Bg2 {[%emt 0:00:09]} d5 {[%emt 0:01:06]} 5. cxd5 {[%emt 0:00:08]} Nxd5 {[%emt 0:00:06]} 6. e4 {[%emt 0:00:09]} Nb6 {[%emt 0:00:49]} 7. Ne2 {[%emt 0:00:08]} O-O {[%emt 0:01:18]} 8. O-O {[%emt 0:00:16]} c5 {[%emt 0:02:35]} 9. d5 {[%emt 0:00:16]} e6 {[%emt 0:06:14]} 10. Nec3 {[%emt 0:00:09]} Na6 {[%emt 0:03:55]} 11. Bf4 {[%emt 0:01:41]} Bd7 {[%emt 0:03:17]} 12. Na3 {[%emt 0:06:20]} exd5 {[%emt 0:09:11]} 13. exd5 {[%emt 0:02:38]} Bf5 {[%emt 0:00:36]} 14. g4 {[%emt 0:01:29]} Qh4 {[%emt 0:09:04]} 15. h3 {[%emt 0:01:06]} Bd7 {[%emt 0:00:22]} 16. Qd2 {[%emt 0:02:53]} Qf6 {[%emt 0:03:39]} 17. Rad1 {[%emt 0:02:16]} Na4 {[%emt 0:06:19]} 18. Nxa4 {[%emt 0:10:22]} Bxa4 {[%emt 0:00:32]} 19. b3 {[%emt 0:00:21]} Bd7 {[%emt 0:01:57]} 20. Nc4 {[%emt 0:00:26]} Qd4 {[%emt 0:11:18]} 21. Qc1 {[%emt 0:07:42]} Qc3 {[%emt 0:00:47]} 22. Qxc3 {[%emt 0:02:53]} Bxc3 {[%emt 0:00:08]} 23. d6 {[%emt 0:00:36]} Nb4 {[%emt 0:04:49]} 24. Be3 {[%emt 0:03:54]} Nxa2 {[%emt 0:03:02]} 25. Bxc5 {[%emt 0:00:43]} Bb4 {[%emt 0:10:18]} 26. Bxb4 {[%emt 0:02:02]} Nxb4 {[%emt 0:00:06]} 27. Bxb7 {[%emt 0:00:08]} Rab8 {[%emt 0:00:04]} 28. Bg2 {[%emt 0:00:18]} Rfd8 {[%emt 0:03:43]} 29. Rfe1 {[%emt 0:04:11]} Bc6 {[%emt 0:02:46]} 30. Re7 {[%emt 0:00:46]} Bxg2 {[%emt 0:02:14]} 31. Kxg2 {[%emt 0:00:08]} Nc6 {[%emt 0:00:02]} 32. Rc7 {[%emt 0:00:16]} Rbc8 {[%emt 0:14:24]} 33. Rd5 {[%emt 0:01:51]} Nb4 {[%emt 0:00:00]} 34. Rb5 {[%emt 0:01:16]} Nc6 {[%emt 0:00:00]} 35. Rc5 {[%emt 0:00:21]} 1-0

[Event "36th Belgrade Trophy 2023"]
[Site "Belgrade"]
[Date "2023.11.25"]
[Round "1.4"]
[White "Marjanovic, Marko"]
[Black "Kilic, Eray"]
[Result "0-1"]
[ECO "A08"]
[WhiteElo "1802"]
[BlackElo "2446"]
[Annotator "RC"]
[PlyCount "74"]
[EventDate "2023.10.23"]
[EventType "swiss"]
[EventCountry "SRB"]
[SourceTitle "playchess.com"]
[Source "ChessBase"]
[SourceQuality "1"]
[TimeControl "40/5400+30:900+30"]

1. Nf3 {[%emt 0:00:17]} d5 {[%emt 0:00:04]} 2. b3 {[%emt 0:00:09]} Nf6 {[%emt 0:00:05]} 3. Bb2 {[%emt 0:00:08]} c5 {[%emt 0:00:03]} 4. g3 {[%emt 0:00:27]} Nc6 {[%emt 0:00:10]} 5. Bg2 {[%emt 0:00:06]} d4 {[%emt 0:00:06]} 6. O-O {[%emt 0:00:40]} e5 {[%emt 0:00:02]} 7. d3 {[%emt 0:12:10]} Bd6 {[%emt 0:00:27]} 8. e4 {[%emt 0:02:00]} dxe3 {[%emt 0:00:15]} 9. fxe3 {[%emt 0:00:10]} O-O {[%emt 0:00:06]} 10. Nbd2 {[%emt 0:08:14]} Re8 {[%emt 0:01:38]} 11. Nc4 {[%emt 0:07:04]} Bc7 {[%emt 0:00:04]} 12. e4 {[%emt 0:03:13]} Nd4 {[%emt 0:02:07]} 13. Nxd4 {[%emt 0:03:28]} exd4 {[%emt 0:04:11]} 14. a4 {[%emt 0:05:35]} Rb8 {[%emt 0:00:59]} 15. Bc1 {[%emt 0:04:25]} Ng4 {[%emt 0:02:26]} 16. Bf4 {[%emt 0:01:44]} Bxf4 {[%emt 0:00:05]} 17. Rxf4 {[%emt 0:00:26]} Qg5 {[%emt 0:00:53]} 18. Qf3 {[%emt 0:11:08]} Be6 {[%emt 0:00:57]} 19. Rf1 {[%emt 0:03:50]} f6 {[%emt 0:02:53]} 20. h4 {[%emt 0:06:44]} Qg6 {[%emt 0:00:01]} 21. Bh3 {[%emt 0:02:12]} h5 {[%emt 0:02:46]} 22. Bxg4 {[%emt 0:02:24]} Bxg4 {[%emt 0:00:07]} 23. Qg2 {[%emt 0:01:52]} Rbd8 {[%emt 0:00:46]} 24. Nd2 {[%emt 0:02:29]} Qh6 {[%emt 0:02:52]} 25. R1f2 {[%emt 0:02:43]} b6 {[%emt 0:03:05]} 26. Nf1 {[%emt 0:02:38]} Kh7 {[%emt 0:03:14]} 27. Nh2 {[%emt 0:01:48]} Bc8 {[%emt 0:00:01]} 28. Qf1 {[%emt 0:01:53]} a6 {[%emt 0:02:00]} 29. Kg2 {[%emt 0:03:49]} Rd6 {[%emt 0:01:05]} 30. g4 {[%emt 0:01:35]} Re5 {[%emt 0:01:03]} 31. Kg3 {[%emt 0:04:53]} hxg4 {[%emt 0:00:48]} 32. Nxg4 {[%emt 0:00:56]} Qg6 {[%emt 0:00:05]} 33. Qh3 {[%emt 0:02:20]} f5 {[%emt 0:02:36]} 34. exf5 {[%emt 0:02:50]} Bxf5 {[%emt 0:01:15]} 35. Kh2 {[%emt 0:00:29]} Qh5 {[%emt 0:00:13]} 36. Kg2 {[%emt 0:01:04]} Rg6 {[%emt 0:00:14]} 37. Rxf5 {[%emt 0:00:33]} Rxg4+ {[%emt 0:00:14]} 0-1

[Event "36th Belgrade Trophy 2023"]
[Site "Belgrade"]
[Date "2023.11.25"]
[Round "1.5"]
[White "Blagojevic, Dragisa"]
[Black "Valitov, Ilshat"]
[Result "1-0"]
[ECO "E65"]
[WhiteElo "2438"]
[BlackElo "1802"]
[Annotator "RC"]
[PlyCount "99"]
[EventDate "2023.10.23"]
[EventType "swiss"]
[EventCountry "SRB"]
[SourceTitle "playchess.com"]
[Source "ChessBase"]
[SourceQuality "1"]
[TimeControl "40/5400+30:900+30"]

1. d4 {[%emt 1:31:00]} Nf6 {[%emt 0:31:38]} 2. c4 {[%emt 0:00:00]} g6 {[%emt 0:59:52]} 3. Nf3 {[%emt 0:01:00]} Bg7 {[%emt 0:00:00]} 4. g3 {[%emt 0:00:30]} d6 {[%emt 0:00:00]} 5. Bg2 {[%emt 0:00:30]} c5 {[%emt 0:01:30]} 6. Nc3 {[%emt 0:00:30]} cxd4 {[%emt 0:00:30]} 7. Nxd4 {[%emt 0:00:30]} O-O {[%emt 0:00:30]} 8. O-O {[%emt 0:00:30]} Nbd7 {[%emt 0:00:30]} 9. b3 {[%emt 0:00:30]} Qa5 {[%emt 0:00:30]} 10. Bd2 {[%emt 0:00:30]} Qh5 {[%emt 0:00:00]} 11. e3 Qxd1 {[%emt 0:01:00]} 12. Rfxd1 {[%emt 0:01:00]} Rb8 {[%emt 0:00:30]} 13. Be1 {[%emt 0:00:30]} Ne5 {[%emt 0:00:30]} 14. f4 {[%emt 0:00:30]} Neg4 {[%emt 0:00:30]} 15. Nc2 {[%emt 0:00:30]} Bf5 {[%emt 0:00:30]} 16. e4 {[%emt 0:00:30]} Nxe4 {[%emt 0:00:30]} 17. Nxe4 {[%emt 0:00:30]} Bxa1 {[%emt 0:00:00]} 18. Rxa1 b5 {[%emt 0:01:00]} 19. h3 {[%emt 0:01:00]} Bxe4 {[%emt 0:00:30]} 20. Bxe4 {[%emt 0:00:30]} Nf6 {[%emt 0:00:30]} 21. Bd3 {[%emt 0:00:30]} bxc4 {[%emt 0:00:30]} 22. Bxc4 {[%emt 0:00:30]} Rbc8 {[%emt 0:00:30]} 23. Nd4 {[%emt 0:00:30]} d5 {[%emt 0:00:30]} 24. Bf1 {[%emt 0:00:30]} Ne4 {[%emt 0:00:30]} 25. b4 {[%emt 0:00:30]} Rc7 {[%emt 0:00:30]} 26. b5 {[%emt 0:00:30]} Rfc8 {[%emt 0:00:30]} 27. Nc6 {[%emt 0:00:30]} a6 {[%emt 0:00:30]} 28. Ba5 {[%emt 0:00:30]} axb5 {[%emt 0:00:30]} 29. Bxc7 {[%emt 0:00:30]} Rxc7 {[%emt 0:00:30]} 30. Bxb5 {[%emt 0:00:30]} Nxg3 {[%emt 0:00:30]} 31. a4 {[%emt 0:00:30]} Ne4 {[%emt 0:00:30]} 32. a5 {[%emt 0:00:30]} Nd6 {[%emt 0:00:30]} 33. Nd4 {[%emt 0:00:30]} Kg7 {[%emt 0:00:30]} 34. a6 {[%emt 0:00:30]} Nc8 {[%emt 0:00:00]} 35. Bf1 Kf6 {[%emt 0:01:00]} 36. Nb5 {[%emt 0:01:00]} Rd7 {[%emt 0:00:30]} 37. Bd3 {[%emt 0:00:30]} h6 {[%emt 0:00:30]} 38. h4 {[%emt 0:00:30]} g5 {[%emt 0:00:30]} 39. fxg5+ {[%emt 0:00:30]} hxg5 {[%emt 0:00:30]} 40. Rf1+ {[%emt 0:00:30]} Kg7 {[%emt 0:00:30]} 41. hxg5 {[%emt 0:15:30]} d4 {[%emt 0:15:30]} 42. Rc1 {[%emt 0:00:30]} Na7 {[%emt 0:00:30]} 43. Nxa7 {[%emt 0:00:00]} Rxa7 {[%emt 0:00:30]} 44. Kf2 {[%emt 0:01:00]} e5 {[%emt 0:00:30]} 45. Kf3 {[%emt 0:00:30]} f5 {[%emt 0:00:30]} 46. gxf6+ {[%emt 0:00:30]} Kxf6 {[%emt 0:00:30]} 47. Rc6+ {[%emt 0:00:30]} Ke7 {[%emt 0:00:00]} 48. Rh6 {[%emt 0:00:30]} Ra8 {[%emt 0:01:00]} 49. Be4 {[%emt 0:00:30]} Rf8+ {[%emt 0:00:30]} 50. Ke2 {[%emt 0:00:30]} 1-0

[Event "36th Belgrade Trophy 2023"]
[Site "Belgrade"]
[Date "2023.11.25"]
[Round "1.6"]
[White "Bozic, Sasa"]
[Black "Atalik, Suat"]
[Result "0-1"]
[ECO "A46"]
[WhiteElo "1785"]
[BlackElo "2427"]
[Annotator "RC"]
[PlyCount "108"]
[EventDate "2023.10.23"]
[EventType "swiss"]
[EventCountry "SRB"]
[SourceTitle "playchess.com"]
[Source "ChessBase"]
[SourceQuality "1"]
[TimeControl "40/5400+30:900+30"]

1. d4 {[%emt 0:00:08]} Nf6 {[%emt 0:00:31]} 2. Nf3 {[%emt 0:00:35]} e6 {[%emt 0:01:10]} 3. Bg5 {[%emt 0:00:55]} Be7 {[%emt 0:01:41]} 4. Nbd2 {[%emt 0:01:22]} c5 {[%emt 0:01:40]} 5. c3 {[%emt 0:03:57]} cxd4 {[%emt 0:05:09]} 6. cxd4 {[%emt 0:01:21]} Nc6 {[%emt 0:00:39]} 7. e3 {[%emt 0:01:49]} h6 {[%emt 0:01:25]} 8. Bh4 {[%emt 0:02:30]} b6 {[%emt 0:01:59]} 9. Be2 {[%emt 0:01:46]} O-O {[%emt 0:02:32]} 10. O-O {[%emt 0:00:25]} Bb7 {[%emt 0:00:44]} 11. a3 {[%emt 0:02:45]} a6 {[%emt 0:06:51]} 12. Qb1 {[%emt 0:10:30]} d5 {[%emt 0:03:08]} 13. Rc1 {[%emt 0:04:36]} Rc8 {[%emt 0:03:29]} 14. b4 {[%emt 0:01:57]} Ne8 {[%emt 0:04:18]} 15. Bxe7 {[%emt 0:04:21]} Nxe7 {[%emt 0:00:09]} 16. Ne5 {[%emt 0:03:42]} Rxc1+ {[%emt 0:02:24]} 17. Qxc1 {[%emt 0:00:19]} f6 {[%emt 0:00:22]} 18. Nef3 {[%emt 0:00:51]} Nd6 {[%emt 1:01:19]} 19. Qf1 {[%emt 0:02:52]} Qa8 {[%emt 0:00:00]} 20. Rc1 {[%emt 0:05:44]} Rc8 {[%emt 0:00:00]} 21. h3 {[%emt 0:06:32]} g5 {[%emt 0:00:00]} 22. a4 {[%emt 0:04:37]} a5 {[%emt 0:00:00]} 23. bxa5 {[%emt 0:02:35]} Qxa5 {[%emt 0:00:00]} 24. Rxc8+ {[%emt 0:01:55]} Bxc8 {[%emt 0:00:00]} 25. Qc1 {[%emt 0:05:23]} Qa7 {[%emt 0:00:00]} 26. Qc2 {[%emt 0:01:12]} Bd7 {[%emt 0:00:00]} 27. Bd1 {[%emt 0:02:18]} Be8 {[%emt 0:00:00]} 28. Qb2 {[%emt 0:04:05]} Kg7 {[%emt 0:00:00]} 29. Qb4 {[%emt 0:01:40]} Qc7 {[%emt 0:00:00]} 30. Be2 {[%emt 0:01:32]} Nc6 {[%emt 0:00:00]} 31. Qc3 {[%emt 0:01:24]} Qd8 {[%emt 0:00:00]} 32. Qb3 {[%emt 0:06:02]} Na5 {[%emt 0:00:00]} 33. Qb4 {[%emt 0:00:24]} Qc7 {[%emt 0:00:00]} 34. Bd3 {[%emt 0:02:54]} h5 {[%emt 0:08:00]} 35. g4 {[%emt 0:02:17]} hxg4 {[%emt 0:00:00]} 36. hxg4 {[%emt 0:00:10]} Nf7 {[%emt 0:00:00]} 37. Be2 {[%emt 0:03:19]} Qd6 {[%emt 0:00:00]} 38. Qxd6 {[%emt 0:05:55]} Nxd6 {[%emt 0:00:00]} 39. Bd1 {[%emt 0:00:13]} Ndc4 {[%emt 0:00:00]} 40. e4 {[%emt 0:00:00]} dxe4 {[%emt 0:00:00]} 41. Nxe4 {[%emt 0:01:11]} Nb2 {[%emt 0:00:00]} 42. Bc2 {[%emt 0:00:54]} Nxa4 {[%emt 0:00:00]} 43. Nd6 {[%emt 0:02:18]} Bd7 {[%emt 0:00:00]} 44. Nd2 {[%emt 0:01:54]} Nc3 {[%emt 0:00:00]} 45. Bd3 {[%emt 0:03:31]} Kf8 {[%emt 0:00:00]} 46. Kf1 {[%emt 0:02:07]} Ke7 {[%emt 0:00:00]} 47. N6c4 {[%emt 0:03:24]} Nxc4 {[%emt 0:01:26]} 48. Bxc4 {[%emt 0:00:26]} b5 {[%emt 0:03:10]} 49. Bb3 {[%emt 0:00:34]} b4 {[%emt 0:00:34]} 50. f3 {[%emt 0:00:59]} Nb5 {[%emt 0:04:49]} 51. d5 {[%emt 0:01:15]} Nd4 {[%emt 0:01:54]} 52. dxe6 {[%emt 0:01:23]} Nxb3 {[%emt 0:02:13]} 53. Nxb3 {[%emt 0:02:04]} Bxe6 {[%emt 0:00:05]} 54. Nd4 {[%emt 0:01:39]} b3 {[%emt 0:01:10]} 0-1

[Event "36th Belgrade Trophy 2023"]
[Site "Belgrade"]
[Date "2023.11.25"]
[Round "1.7"]
[White "Pap, Misa"]
[Black "Stamenkovic, Andjelko"]
[Result "1-0"]
[ECO "B00"]
[WhiteElo "2426"]
[BlackElo "1780"]
[Annotator "RC"]
[PlyCount "77"]
[EventDate "2023.10.23"]
[EventType "swiss"]
[EventCountry "SRB"]
[SourceTitle "playchess.com"]
[Source "ChessBase"]
[SourceQuality "1"]
[TimeControl "40/5400+30:900+30"]

1. e4 {[%emt 0:00:10]} b6 {[%emt 0:00:16]} 2. d4 {[%emt 0:00:07]} Bb7 {[%emt 0:00:22]} 3. Bd3 {[%emt 0:00:07]} g6 {[%emt 0:01:11]} 4. Nf3 {[%emt 0:01:09]} d6 {[%emt 0:03:04]} 5. O-O {[%emt 0:04:13]} Nd7 {[%emt 0:00:37]} 6. Qe2 {[%emt 0:04:43]} a6 {[%emt 0:00:57]} 7. Re1 {[%emt 0:03:35]} Bg7 {[%emt 0:06:16]} 8. c3 {[%emt 0:00:56]} e6 {[%emt 0:01:16]} 9. Nbd2 {[%emt 0:00:12]} Ne7 {[%emt 0:00:47]} 10. Nf1 {[%emt 0:00:13]} h6 {[%emt 0:00:59]} 11. h4 {[%emt 0:00:18]} c5 {[%emt 0:04:50]} 12. Bf4 {[%emt 0:00:39]} e5 {[%emt 0:00:19]} 13. dxe5 {[%emt 0:02:16]} dxe5 {[%emt 0:00:27]} 14. Bg3 {[%emt 0:00:52]} O-O {[%emt 0:06:24]} 15. a4 {[%emt 0:00:39]} Qc7 {[%emt 0:05:08]} 16. h5 {[%emt 0:00:41]} g5 {[%emt 0:00:16]} 17. Ne3 {[%emt 0:00:53]} Rfe8 {[%emt 0:01:57]} 18. Rad1 {[%emt 0:02:47]} Rad8 {[%emt 0:02:06]} 19. Ng4 {[%emt 0:04:00]} Nc8 {[%emt 0:09:07]} 20. Bxa6 {[%emt 0:07:25]} Bxa6 {[%emt 0:00:33]} 21. Qxa6 {[%emt 0:00:07]} c4 {[%emt 0:00:15]} 22. Rxd7 {[%emt 0:10:30]} Rxd7 {[%emt 0:01:37]} 23. Ngxe5 {[%emt 0:01:17]} Qb7 {[%emt 0:04:53]} 24. Qb5 {[%emt 0:13:15]} Rde7 {[%emt 0:01:20]} 25. Nxc4 {[%emt 0:00:14]} Rxe4 {[%emt 0:02:01]} 26. Rd1 {[%emt 0:00:44]} R4e7 {[%emt 0:03:18]} 27. Kh2 {[%emt 0:07:47]} Qe4 {[%emt 0:04:36]} 28. Ne3 {[%emt 0:00:18]} g4 {[%emt 0:11:34]} 29. Nh4 {[%emt 0:05:07]} Re5 {[%emt 0:05:17]} 30. Bxe5 {[%emt 0:07:48]} Bxe5+ {[%emt 0:04:02]} 31. g3 {[%emt 0:00:23]} Nd6 {[%emt 0:01:59]} 32. Qb4 {[%emt 0:07:52]} Qxb4 {[%emt 0:04:13]} 33. cxb4 {[%emt 0:00:07]} Ne4 {[%emt 0:00:43]} 34. Nxg4 {[%emt 0:00:54]} Bxb2 {[%emt 0:00:49]} 35. Nxh6+ {[%emt 0:01:00]} Kf8 {[%emt 0:00:31]} 36. Kg2 {[%emt 0:03:08]} Nf6 {[%emt 0:00:18]} 37. N4f5 {[%emt 0:01:08]} Nxh5 {[%emt 0:01:45]} 38. Rd7 {[%emt 0:00:17]} Ra8 {[%emt 0:01:30]} 39. Rxf7+ {[%emt 0:00:11]} 1-0

[Event "36th Belgrade Trophy 2023"]
[Site "Belgrade"]
[Date "2023.11.25"]
[Round "1.8"]
[White "Basic, Nemanja"]
[Black "Antic, Dejan"]
[Result "0-1"]
[ECO "A40"]
[WhiteElo "1779"]
[BlackElo "2362"]
[Annotator "RC"]
[PlyCount "52"]
[EventDate "2023.10.23"]
[EventType "swiss"]
[EventCountry "SRB"]
[SourceTitle "playchess.com"]
[Source "ChessBase"]
[SourceQuality "1"]
[TimeControl "40/5400+30:900+30"]

1. d4 {[%emt 0:00:08]} e6 {[%emt 0:00:21]} 2. c4 {[%emt 0:00:05]} Bb4+ {[%emt 0:00:25]} 3. Nc3 {[%emt 0:00:10]} c5 {[%emt 0:00:48]} 4. d5 {[%emt 0:00:10]} Bxc3+ {[%emt 0:01:25]} 5. bxc3 {[%emt 0:00:12]} Qa5 {[%emt 0:00:53]} 6. Qc2 {[%emt 0:00:45]} Nf6 {[%emt 0:00:54]} 7. Bg5 {[%emt 0:00:34]} Ne4 {[%emt 0:01:10]} 8. Bd2 {[%emt 0:00:24]} f5 {[%emt 0:01:36]} 9. f3 {[%emt 0:01:29]} Nxd2 {[%emt 1:27:28]} 10. Qxd2 {[%emt 0:00:06]} O-O {[%emt 0:00:00]} 11. e4 {[%emt 0:00:27]} d6 {[%emt 0:00:00]} 12. Bd3 {[%emt 0:00:36]} exd5 {[%emt 0:00:00]} 13. cxd5 {[%emt 0:00:26]} Nd7 {[%emt 0:00:00]} 14. Ne2 {[%emt 0:05:26]} Ne5 {[%emt 0:00:00]} 15. O-O {[%emt 0:00:58]} Bd7 {[%emt 0:00:00]} 16. Rab1 {[%emt 0:04:56]} b5 {[%emt 0:00:00]} 17. Rb2 {[%emt 0:04:31]} fxe4 {[%emt 0:00:00]} 18. fxe4 {[%emt 0:00:14]} Rxf1+ {[%emt 0:00:00]} 19. Kxf1 {[%emt 0:00:11]} Rf8+ {[%emt 0:00:00]} 20. Kg1 {[%emt 0:00:19]} Qb6 {[%emt 0:00:00]} 21. c4 {[%emt 0:14:36]} Qd8 {[%emt 0:00:00]} 22. cxb5 {[%emt 0:06:01]} Qf6 {[%emt 0:00:00]} 23. Rb1 {[%emt 0:01:21]} Qf2+ {[%emt 0:00:00]} 24. Kh1 {[%emt 0:00:17]} Bg4 {[%emt 0:00:00]} 25. h3 {[%emt 0:01:28]} Bxh3 {[%emt 0:00:00]} 26. gxh3 {[%emt 0:00:58]} Nf3 {[%emt 0:00:00]} 0-1

[Event "36th Belgrade Trophy 2023"]
[Site "Belgrade"]
[Date "2023.11.25"]
[Round "1.9"]
[White "Milosevic, Milos"]
[Black "Boskovic, Dubravko"]
[Result "1-0"]
[ECO "B01"]
[WhiteElo "2362"]
[BlackElo "1773"]
[Annotator "RC"]
[PlyCount "53"]
[EventDate "2023.10.23"]
[EventType "swiss"]
[EventCountry "SRB"]
[SourceTitle "playchess.com"]
[Source "ChessBase"]
[SourceQuality "1"]
[TimeControl "40/5400+30:900+30"]

1. e4 {[%emt 1:31:00]} d5 {[%emt 0:00:15]} 2. exd5 {[%emt 0:00:30]} Qxd5 {[%emt 0:00:12]} 3. Nc3 {[%emt 0:00:00]} Qa5 {[%emt 0:00:17]} 4. d4 {[%emt 0:01:00]} c6 {[%emt 0:00:20]} 5. Bc4 {[%emt 0:00:30]} Nf6 {[%emt 1:31:56]} 6. Bd2 {[%emt 0:00:30]} Qc7 {[%emt 0:00:30]} 7. Qe2 {[%emt 0:00:30]} e6 {[%emt 0:00:30]} 8. Nf3 {[%emt 0:00:30]} Be7 {[%emt 0:00:00]} 9. O-O {[%emt 0:00:00]} O-O {[%emt 0:00:00]} 10. Rfe1 {[%emt 0:00:00]} Rd8 {[%emt 0:00:00]} 11. Rad1 {[%emt 0:00:00]} b5 {[%emt 0:00:00]} 12. Bd3 {[%emt 0:00:00]} h6 {[%emt 0:00:00]} 13. Ne4 {[%emt 0:02:30]} Nbd7 {[%emt 0:00:00]} 14. Ne5 {[%emt 0:00:30]} a6 {[%emt 0:00:00]} 15. Bf4 {[%emt 0:00:30]} Nd5 {[%emt 0:04:00]} 16. Bg3 {[%emt 0:00:30]} Qb7 {[%emt 0:00:00]} 17. Nxf7 {[%emt 0:00:30]} N7f6 {[%emt 0:00:00]} 18. Nxd8 {[%emt 0:00:00]} Bxd8 {[%emt 0:00:00]} 19. Nd6 {[%emt 0:00:00]} Qd7 {[%emt 0:00:00]} 20. Bg6 {[%emt 0:01:30]} Bc7 {[%emt 0:00:00]} 21. Nxc8 {[%emt 0:00:30]} Rxc8 {[%emt 0:00:00]} 22. Qxe6+ {[%emt 0:00:00]} Qxe6 {[%emt 0:00:00]} 23. Rxe6 {[%emt 0:00:00]} Bxg3 {[%emt 0:00:00]} 24. hxg3 {[%emt 0:00:00]} Nh7 {[%emt 0:04:30]} 25. Rde1 {[%emt 0:02:00]} Nf8 {[%emt 0:00:00]} 26. Re8 {[%emt 0:00:30]} Rc7 {[%emt 0:01:00]} 27. Rxf8+ {[%emt 0:00:30]} 1-0